[Event "Late-Titled-Tuesday-Blitz-April-30-2024"]
[Site "Chess.com"]
[Date "2024.04.30"]
[Round "10"]
[White "simaopdias"]
[Black "wild3000"]
[Result "0-1"]
[WhiteElo "2344"]
[BlackElo "2496"]
[TimeControl "180+1"]
[EndTime "15:56:58 PDT"]
[Termination "wild3000 won on time"]

1. e4 {[%clk 0:03:00.2]} 1... a6 {[%clk 0:02:48.6]} 2. Nf3 {[%clk 0:03:00.7]}
2... b5 {[%clk 0:02:48.6]} 3. d3 {[%clk 0:03:00.3]} 3... Bb7 {[%clk 0:02:49.5]}
4. Bf4 {[%clk 0:02:59.6]} 4... e6 {[%clk 0:02:50.4]} 5. Nbd2 {[%clk 0:02:59.7]}
5... Nf6 {[%clk 0:02:51.1]} 6. Be2 {[%clk 0:03:00]} 6... c5 {[%clk 0:02:51.7]}
7. O-O {[%clk 0:03:00.1]} 7... d5 {[%clk 0:02:52]} 8. exd5 {[%clk 0:02:58.1]}
8... Nxd5 {[%clk 0:02:51.7]} 9. Bg3 {[%clk 0:02:58.6]} 9... Nc6 {[%clk
0:02:51.8]} 10. Re1 {[%clk 0:02:58.6]} 10... Be7 {[%clk 0:02:51.8]} 11. Ne4
{[%clk 0:02:57]} 11... Qb6 {[%clk 0:02:51.5]} 12. Qd2 {[%clk 0:02:55.3]} 12...
O-O {[%clk 0:02:51.1]} 13. Nd6 {[%clk 0:02:51.2]} 13... Rfd8 {[%clk 0:02:40.3]}
14. Nxb7 {[%clk 0:02:51.3]} 14... Qxb7 {[%clk 0:02:41.2]} 15. Ne5 {[%clk
0:02:48.2]} 15... Bf6 {[%clk 0:02:36.2]} 16. Nxc6 {[%clk 0:02:47.7]} 16... Qxc6
{[%clk 0:02:37.1]} 17. c3 {[%clk 0:02:42.6]} 17... c4 {[%clk 0:02:34.4]} 18. Bf3
{[%clk 0:02:34]} 18... cxd3 {[%clk 0:02:33.3]} 19. Qxd3 {[%clk 0:02:32.8]} 19...
Rac8 {[%clk 0:02:25.2]} 20. Rad1 {[%clk 0:02:30.9]} 20... Qc5 {[%clk 0:02:21.4]}
21. Qe4 {[%clk 0:02:22.4]} 21... h6 {[%clk 0:02:17]} 22. h3 {[%clk 0:02:21.6]}
22... a5 {[%clk 0:02:13.6]} 23. a3 {[%clk 0:02:21.2]} 23... b4 {[%clk
0:02:11.8]} 24. axb4 {[%clk 0:02:18.2]} 24... axb4 {[%clk 0:02:12.7]} 25. cxb4
{[%clk 0:02:14.7]} 25... Nxb4 {[%clk 0:02:11.6]} 26. Rxd8+ {[%clk 0:02:13.4]}
26... Rxd8 {[%clk 0:02:10.3]} 27. Qe2 {[%clk 0:01:59.3]} 27... Qc2 {[%clk
0:01:57.3]} 28. Qxc2 {[%clk 0:01:55.1]} 28... Nxc2 {[%clk 0:01:58.2]} 29. Rb1
{[%clk 0:01:53.2]} 29... Nd4 {[%clk 0:01:51.7]} 30. Be4 {[%clk 0:01:51.6]} 30...
Nb3 {[%clk 0:01:48.6]} 31. Bf4 {[%clk 0:01:36.1]} 31... Rd4 {[%clk 0:01:43.4]}
32. f3 {[%clk 0:01:36.4]} 32... Rb4 {[%clk 0:01:31]} 33. Bd6 {[%clk 0:01:30]}
33... Bd4+ {[%clk 0:01:30.9]} 34. Kh2 {[%clk 0:01:26]} 34... Rb6 {[%clk
0:01:29.8]} 35. Ba3 {[%clk 0:01:25.6]} 35... Nd2 {[%clk 0:01:26.1]} 36. Rc1
{[%clk 0:01:23.3]} 36... Nxe4 {[%clk 0:01:17.9]} 37. fxe4 {[%clk 0:01:23.5]}
37... Bxb2 {[%clk 0:01:17.4]} 38. Rc8+ {[%clk 0:01:14]} 38... Kh7 {[%clk
0:01:16.9]} 39. Bxb2 {[%clk 0:01:10.9]} 39... Rxb2 {[%clk 0:01:17.3]} 40. Rc7
{[%clk 0:01:10.3]} 40... Kg6 {[%clk 0:01:16.8]} 41. Kg3 {[%clk 0:01:10.4]} 41...
Rb3+ {[%clk 0:01:12.3]} 42. Kf2 {[%clk 0:01:10.4]} 42... Kf6 {[%clk 0:01:06]}
43. Rd7 {[%clk 0:01:10.4]} 43... h5 {[%clk 0:01:05.4]} 44. Ke2 {[%clk
0:01:08.8]} 44... h4 {[%clk 0:01:04.9]} 45. Kf2 {[%clk 0:01:08.9]} 45... g5
{[%clk 0:01:03.2]} 46. Ke2 {[%clk 0:01:08.8]} 46... Rg3 {[%clk 0:00:59.4]} 47.
Kf2 {[%clk 0:01:09]} 47... Kg6 {[%clk 0:00:59.4]} 48. Rd8 {[%clk 0:01:05.7]}
48... Kg7 {[%clk 0:00:58.3]} 49. Ra8 {[%clk 0:01:04.1]} 49... g4 {[%clk
0:00:52.1]} 50. hxg4 {[%clk 0:01:02.6]} 50... Rxg4 {[%clk 0:00:53]} 51. Kf3
{[%clk 0:01:02.8]} 51... Rg3+ {[%clk 0:00:52.2]} 52. Kf2 {[%clk 0:01:02.9]}
52... Rc3 {[%clk 0:00:49.8]} 53. Ra5 {[%clk 0:01:00.5]} 53... Kg6 {[%clk
0:00:49.2]} 54. Rb5 {[%clk 0:00:56]} 54... Kf6 {[%clk 0:00:43.5]} 55. Rh5 {[%clk
0:00:52.9]} 55... Rc2+ {[%clk 0:00:42.5]} 56. Kf3 {[%clk 0:00:52.9]} 56... Rc3+
{[%clk 0:00:41.5]} 57. Kf2 {[%clk 0:00:53.1]} 57... Kg6 {[%clk 0:00:40.7]} 58.
Rxh4 {[%clk 0:00:52.4]} 58... Kg5 {[%clk 0:00:40.9]} 59. Rh7 {[%clk 0:00:51.6]}
59... f6 {[%clk 0:00:41.1]} 60. Rg7+ {[%clk 0:00:51.2]} 60... Kf4 {[%clk
0:00:40.2]} 61. Rf7 {[%clk 0:00:43.1]} 61... Rc2+ {[%clk 0:00:39.4]} 62. Kg1
{[%clk 0:00:40.5]} 62... Ke5 {[%clk 0:00:39.5]} 63. Kf1 {[%clk 0:00:38.1]} 63...
Rc4 {[%clk 0:00:39]} 64. Kf2 {[%clk 0:00:36.8]} 64... Rxe4 {[%clk 0:00:39.1]}
65. Ra7 {[%clk 0:00:36.5]} 65... Kf4 {[%clk 0:00:36]} 66. Rf7 {[%clk 0:00:33.5]}
66... f5 {[%clk 0:00:36]} 67. Ra7 {[%clk 0:00:32.7]} 67... Rb4 {[%clk
0:00:34.6]} 68. Ra2 {[%clk 0:00:30.6]} 68... e5 {[%clk 0:00:34.5]} 69. Rc2
{[%clk 0:00:30.3]} 69... e4 {[%clk 0:00:33.9]} 70. Ra2 {[%clk 0:00:29.7]} 70...
Rd4 {[%clk 0:00:31.3]} 71. Rb2 {[%clk 0:00:28.7]} 71... Rd3 {[%clk 0:00:31.2]}
72. Rc2 {[%clk 0:00:26.6]} 72... Kg4 {[%clk 0:00:30.8]} 73. Rc8 {[%clk
0:00:26.4]} 73... Rb3 {[%clk 0:00:29.7]} 74. Rg8+ {[%clk 0:00:25.3]} 74... Kf4
{[%clk 0:00:29.5]} 75. g3+ {[%clk 0:00:25.7]} 75... Ke5 {[%clk 0:00:28.1]} 76.
Re8+ {[%clk 0:00:25.9]} 76... Kf6 {[%clk 0:00:27.8]} 77. Rf8+ {[%clk 0:00:26.4]}
77... Ke6 {[%clk 0:00:27.7]} 78. Rb8 {[%clk 0:00:24.2]} 78... Rb2+ {[%clk
0:00:24.9]} 79. Ke3 {[%clk 0:00:24.3]} 79... Rb3+ {[%clk 0:00:24.9]} 80. Kf2
{[%clk 0:00:23.9]} 80... Rf3+ {[%clk 0:00:24.9]} 81. Kg2 {[%clk 0:00:24.5]}
81... Kf6 {[%clk 0:00:23.7]} 82. Rg8 {[%clk 0:00:23.1]} 82... Ke5 {[%clk
0:00:23.1]} 83. Re8+ {[%clk 0:00:22.4]} 83... Kd4 {[%clk 0:00:22.9]} 84. Rb8
{[%clk 0:00:22.4]} 84... Rc3 {[%clk 0:00:20.7]} 85. Kf2 {[%clk 0:00:20.5]} 85...
Rc2+ {[%clk 0:00:20.3]} 86. Kf1 {[%clk 0:00:19.6]} 86... Ke3 {[%clk 0:00:20.3]}
87. Rb3+ {[%clk 0:00:18.6]} 87... Kd4 {[%clk 0:00:19.3]} 88. Ra3 {[%clk
0:00:16.5]} 88... Ke5 {[%clk 0:00:19.2]} 89. Kg1 {[%clk 0:00:15.8]} 89... Kf6
{[%clk 0:00:19.3]} 90. Kf1 {[%clk 0:00:15.9]} 90... Kg5 {[%clk 0:00:19.5]} 91.
Ra8 {[%clk 0:00:15.8]} 91... Kg4 {[%clk 0:00:19.3]} 92. Rg8+ {[%clk 0:00:13.3]}
92... Kf3 {[%clk 0:00:19.2]} 93. Kg1 {[%clk 0:00:13.6]} 93... e3 {[%clk
0:00:18.3]} 94. g4 {[%clk 0:00:09.3]} 94... f4 {[%clk 0:00:17.9]} 95. g5 {[%clk
0:00:08.6]} 95... Kg3 {[%clk 0:00:18.2]} 96. Kf1 {[%clk 0:00:06.9]} 96... f3
{[%clk 0:00:18.4]} 97. Rd8 {[%clk 0:00:03.3]} 97... Rc1+ {[%clk 0:00:18.1]} 0-1

[Event "Late-Titled-Tuesday-Blitz-April-30-2024"]
[Site "Chess.com"]
[Date "2024.04.30"]
[Round "11"]
[White "ExchangeAB"]
[Black "pedroholly22"]
[Result "1-0"]
[WhiteElo "2459"]
[BlackElo "2445"]
[TimeControl "180+1"]
[EndTime "16:00:59 PDT"]
[Termination "ExchangeAB won by resignation"]

1. d4 {[%clk 0:03:00.9]} 1... d5 {[%clk 0:02:58.4]} 2. Nf3 {[%clk 0:03:01.5]}
2... e6 {[%clk 0:02:56.5]} 3. e3 {[%clk 0:03:01.3]} 3... c5 {[%clk 0:02:55.1]}
4. c3 {[%clk 0:03:01.1]} 4... Nf6 {[%clk 0:02:55.2]} 5. Nbd2 {[%clk 0:03:01.6]}
5... Nc6 {[%clk 0:02:55]} 6. Bd3 {[%clk 0:03:01.6]} 6... Bd6 {[%clk 0:02:55.4]}
7. dxc5 {[%clk 0:03:01.9]} 7... Bxc5 {[%clk 0:02:55.7]} 8. O-O {[%clk
0:03:02.4]} 8... O-O {[%clk 0:02:55.7]} 9. b4 {[%clk 0:03:02.6]} 9... Bd6 {[%clk
0:02:54.6]} 10. Bb2 {[%clk 0:03:02.2]} 10... e5 {[%clk 0:02:52.9]} 11. e4 {[%clk
0:03:02.4]} 11... dxe4 {[%clk 0:02:46.8]} 12. Nxe4 {[%clk 0:03:03.3]} 12... Nxe4
{[%clk 0:02:47.3]} 13. Bxe4 {[%clk 0:03:03]} 13... f5 {[%clk 0:02:47.9]} 14.
Bd5+ {[%clk 0:03:00.7]} 14... Kh8 {[%clk 0:02:47.7]} 15. b5 {[%clk 0:02:59.1]}
15... Ne7 {[%clk 0:02:47.7]} 16. c4 {[%clk 0:02:54.8]} 16... e4 {[%clk
0:02:26.8]} 17. Qd4 {[%clk 0:02:38.4]} 17... Rf6 {[%clk 0:02:21.1]} 18. Ng5
{[%clk 0:02:23.4]} 18... Nxd5 {[%clk 0:02:06.4]} 19. Qxd5 {[%clk 0:02:24.3]}
19... Bxh2+ {[%clk 0:01:57.8]} 20. Kxh2 {[%clk 0:02:21.5]} 20... Rh6+ {[%clk
0:01:56.7]} 21. Nh3 {[%clk 0:02:19.8]} 21... Qxd5 {[%clk 0:01:50.9]} 22. cxd5
{[%clk 0:02:19.6]} 22... f4 {[%clk 0:01:51.8]} 23. Rfe1 {[%clk 0:02:11.5]} 23...
Bf5 {[%clk 0:01:46.7]} 24. Rac1 {[%clk 0:02:10.8]} 24... f3 {[%clk 0:01:45.4]}
25. Rc7 {[%clk 0:02:08.7]} 25... Rg8 {[%clk 0:01:43.9]} 26. Re3 {[%clk
0:01:56.1]} 26... fxg2 {[%clk 0:01:42.3]} 27. Kxg2 {[%clk 0:01:55.2]} 1-0

[Event "Late-Titled-Tuesday-Blitz-April-30-2024"]
[Site "Chess.com"]
[Date "2024.04.30"]
[Round "11"]
[White "th3d4rkness"]
[Black "JaackCamel"]
[Result "0-1"]
[WhiteElo "2155"]
[BlackElo "2276"]
[TimeControl "180+1"]
[EndTime "16:01:16 PDT"]
[Termination "JaackCamel won by resignation"]

1. e4 {[%clk 0:03:00.9]} 1... e6 {[%clk 0:02:59.8]} 2. d3 {[%clk 0:02:59.7]}
2... d5 {[%clk 0:02:59.5]} 3. Nd2 {[%clk 0:03:00]} 3... c5 {[%clk 0:02:59.4]} 4.
Ngf3 {[%clk 0:02:59.6]} 4... Nc6 {[%clk 0:02:59.3]} 5. g3 {[%clk 0:03:00]} 5...
Nf6 {[%clk 0:02:59.2]} 6. Bg2 {[%clk 0:03:00.1]} 6... g6 {[%clk 0:02:59]} 7. O-O
{[%clk 0:02:57.5]} 7... Bg7 {[%clk 0:02:59.2]} 8. Re1 {[%clk 0:02:57.2]} 8...
O-O {[%clk 0:02:59.3]} 9. c3 {[%clk 0:02:51.4]} 9... a5 {[%clk 0:02:59]} 10. a3
{[%clk 0:02:41.1]} 10... a4 {[%clk 0:02:55.5]} 11. e5 {[%clk 0:02:37.6]} 11...
Ng4 {[%clk 0:02:53.5]} 12. d4 {[%clk 0:02:36.7]} 12... cxd4 {[%clk 0:02:53.3]}
13. cxd4 {[%clk 0:02:36.4]} 13... f6 {[%clk 0:02:53.4]} 14. h3 {[%clk
0:02:35.2]} 14... Nxf2 {[%clk 0:02:53.3]} 15. Kxf2 {[%clk 0:02:31.1]} 15... fxe5
{[%clk 0:02:53.2]} 16. dxe5 {[%clk 0:02:29]} 16... Qb6+ {[%clk 0:02:51.8]} 17.
Kf1 {[%clk 0:02:27]} 17... Nxe5 {[%clk 0:02:46.9]} 18. Rxe5 {[%clk 0:02:12.9]}
18... Bxe5 {[%clk 0:02:46]} 19. Qe1 {[%clk 0:02:10.9]} 19... Bg7 {[%clk
0:02:37.9]} 20. Qf2 {[%clk 0:02:07.7]} 20... Bd4 {[%clk 0:02:29.2]} 21. Qe2
{[%clk 0:02:00.9]} 21... Bd7 {[%clk 0:02:18.7]} 22. Ke1 {[%clk 0:01:51.6]} 22...
Bb5 {[%clk 0:02:08.9]} 23. Nxd4 {[%clk 0:01:41.3]} 23... Bxe2 {[%clk 0:02:03.2]}
24. Nxe2 {[%clk 0:01:39.6]} 24... Qf2+ {[%clk 0:01:59.8]} 25. Kd1 {[%clk
0:01:39]} 25... Qxg2 {[%clk 0:01:58.7]} 26. b4 {[%clk 0:01:35.4]} 26... Rac8
{[%clk 0:01:49.3]} 27. Bb2 {[%clk 0:01:31]} 27... Rf2 {[%clk 0:01:40.6]} 0-1

[Event "Late-Titled-Tuesday-Blitz-April-30-2024"]
[Site "Chess.com"]
[Date "2024.04.30"]
[Round "11"]
[White "NajdorfPlayerc5"]
[Black "Russian_berezka"]
[Result "1-0"]
[WhiteElo "2500"]
[BlackElo "2590"]
[TimeControl "180+1"]
[EndTime "16:01:30 PDT"]
[Termination "NajdorfPlayerc5 won by resignation"]

1. Nf3 {[%clk 0:03:00.9]} 1... Nf6 {[%clk 0:02:57.2]} 2. g3 {[%clk 0:03:00.5]}
2... d5 {[%clk 0:02:57.7]} 3. b3 {[%clk 0:02:59.5]} 3... c5 {[%clk 0:02:53.2]}
4. Bb2 {[%clk 0:02:58.8]} 4... Nc6 {[%clk 0:02:52.3]} 5. Bg2 {[%clk 0:02:58.6]}
5... e6 {[%clk 0:02:48.1]} 6. O-O {[%clk 0:02:56.9]} 6... Be7 {[%clk 0:02:47.8]}
7. d4 {[%clk 0:02:55.4]} 7... cxd4 {[%clk 0:02:27.2]} 8. Nxd4 {[%clk 0:02:56.3]}
8... Bd7 {[%clk 0:02:27.6]} 9. c4 {[%clk 0:02:53.6]} 9... dxc4 {[%clk
0:02:23.2]} 10. Nxc6 {[%clk 0:02:49.6]} 10... Bxc6 {[%clk 0:02:24.1]} 11. Bxc6+
{[%clk 0:02:48.6]} 11... bxc6 {[%clk 0:02:24]} 12. bxc4 {[%clk 0:02:46.5]} 12...
O-O {[%clk 0:02:22.2]} 13. Nc3 {[%clk 0:02:38.8]} 13... Qa5 {[%clk 0:02:21.8]}
14. Qa4 {[%clk 0:02:34.5]} 14... Qc5 {[%clk 0:02:12.9]} 15. Rac1 {[%clk
0:02:15.5]} 15... Rab8 {[%clk 0:02:11.9]} 16. Rc2 {[%clk 0:01:46.7]} 16... Rfc8
{[%clk 0:02:07.1]} 17. Rfc1 {[%clk 0:01:28.9]} 17... Qh5 {[%clk 0:02:07]} 18.
Kg2 {[%clk 0:01:24.1]} 18... Rb4 {[%clk 0:01:54.5]} 19. Qa6 {[%clk 0:01:22.8]}
19... Ng4 {[%clk 0:01:55.1]} 20. Qxc8+ {[%clk 0:01:21.9]} 20... Bf8 {[%clk
0:01:54.9]} 21. h3 {[%clk 0:01:20.4]} 21... Nxf2 {[%clk 0:01:43.1]} 22. Kxf2
{[%clk 0:01:12.6]} 22... Qh6 {[%clk 0:01:44]} 23. Ba3 {[%clk 0:01:07.5]} 1-0

[Event "Late-Titled-Tuesday-Blitz-April-30-2024"]
[Site "Chess.com"]
[Date "2024.04.30"]
[Round "11"]
[White "HipsterChess22"]
[Black "cristiano78"]
[Result "1-0"]
[WhiteElo "2204"]
[BlackElo "2265"]
[TimeControl "180+1"]
[EndTime "16:01:30 PDT"]
[Termination "HipsterChess22 won by resignation"]

1. d4 {[%clk 0:02:59.7]} 1... Nf6 {[%clk 0:02:59.8]} 2. Nc3 {[%clk 0:02:59.3]}
2... g6 {[%clk 0:02:59.8]} 3. e4 {[%clk 0:02:58.8]} 3... d6 {[%clk 0:03:00.1]}
4. f3 {[%clk 0:02:57.5]} 4... Bg7 {[%clk 0:03:00.2]} 5. Be3 {[%clk 0:02:57.4]}
5... c6 {[%clk 0:03:00.4]} 6. Qd2 {[%clk 0:02:56.5]} 6... O-O {[%clk 0:03:00.5]}
7. O-O-O {[%clk 0:02:55.6]} 7... b5 {[%clk 0:03:00.7]} 8. h4 {[%clk 0:02:54]}
8... b4 {[%clk 0:03:00.1]} 9. Nce2 {[%clk 0:02:53.2]} 9... a5 {[%clk 0:02:59.2]}
10. Kb1 {[%clk 0:02:52.8]} 10... Nbd7 {[%clk 0:02:57.3]} 11. h5 {[%clk
0:02:49.3]} 11... e5 {[%clk 0:02:57]} 12. Bh6 {[%clk 0:02:44.9]} 12... Re8
{[%clk 0:02:46.4]} 13. Bxg7 {[%clk 0:02:42.3]} 13... Kxg7 {[%clk 0:02:46.6]} 14.
hxg6 {[%clk 0:02:42.4]} 14... fxg6 {[%clk 0:02:46.6]} 15. Qh6+ {[%clk
0:02:37.6]} 15... Kg8 {[%clk 0:02:46.7]} 16. Nh3 {[%clk 0:02:29.8]} 16... Qe7
{[%clk 0:02:44.7]} 17. Ng5 {[%clk 0:02:27.3]} 17... Qg7 {[%clk 0:02:42.5]} 18.
Qh2 {[%clk 0:02:16.3]} 18... h5 {[%clk 0:02:35.7]} 19. dxe5 {[%clk 0:02:05.1]}
19... dxe5 {[%clk 0:02:30.1]} 20. Nc1 {[%clk 0:01:59.1]} 20... Nc5 {[%clk
0:02:25.7]} 21. Bc4+ {[%clk 0:01:57.1]} 21... Kf8 {[%clk 0:02:14.5]} 22. Rd6
{[%clk 0:01:38.9]} 22... Qe7 {[%clk 0:02:01.9]} 23. Rxf6+ {[%clk 0:01:36.4]}
23... Qxf6 {[%clk 0:01:57.5]} 24. Nh7+ {[%clk 0:01:36.4]} 24... Kg7 {[%clk
0:01:58.2]} 25. Nxf6 {[%clk 0:01:34.8]} 25... Kxf6 {[%clk 0:01:58.3]} 26. Qh4+
{[%clk 0:01:20.4]} 26... Kg7 {[%clk 0:01:57.4]} 27. Qg5 {[%clk 0:01:20.4]} 1-0

[Event "Late-Titled-Tuesday-Blitz-April-30-2024"]
[Site "Chess.com"]
[Date "2024.04.30"]
[Round "11"]
[White "DanielNaroditsky"]
[Black "kemelgallo"]
[Result "1-0"]
[WhiteElo "3018"]
[BlackElo "2637"]
[TimeControl "180+1"]
[EndTime "16:01:47 PDT"]
[Termination "DanielNaroditsky won by checkmate"]

1. e4 {[%clk 0:02:58.8]} 1... e5 {[%clk 0:02:57.6]} 2. Nf3 {[%clk 0:02:57.8]}
2... Nc6 {[%clk 0:02:57.7]} 3. Bb5 {[%clk 0:02:58.4]} 3... a6 {[%clk 0:02:57.5]}
4. Ba4 {[%clk 0:02:58.9]} 4... Nf6 {[%clk 0:02:57.7]} 5. O-O {[%clk 0:02:59.5]}
5... Nxe4 {[%clk 0:02:56.8]} 6. Re1 {[%clk 0:02:59.2]} 6... Nc5 {[%clk
0:02:54.3]} 7. Bxc6 {[%clk 0:02:59.4]} 7... dxc6 {[%clk 0:02:55.2]} 8. d4 {[%clk
0:03:00]} 8... Ne6 {[%clk 0:02:53.3]} 9. Nxe5 {[%clk 0:03:00.2]} 9... Be7 {[%clk
0:02:46.4]} 10. c3 {[%clk 0:02:59.5]} 10... O-O {[%clk 0:02:45.1]} 11. Be3
{[%clk 0:03:00]} 11... Re8 {[%clk 0:02:23.7]} 12. Nd2 {[%clk 0:02:59.8]} 12...
g6 {[%clk 0:02:16.3]} 13. Qf3 {[%clk 0:02:59.4]} 13... f6 {[%clk 0:02:08.3]} 14.
Ng4 {[%clk 0:02:59.8]} 14... Ng7 {[%clk 0:02:01.9]} 15. Nh6+ {[%clk 0:03:00.1]}
15... Kf8 {[%clk 0:02:00.5]} 16. Ne4 {[%clk 0:02:58.6]} 16... Nf5 {[%clk
0:01:59]} 17. g4 {[%clk 0:02:57.3]} 17... Nxe3 {[%clk 0:01:45.8]} 18. Rxe3
{[%clk 0:02:51.2]} 18... Kg7 {[%clk 0:01:44.9]} 19. g5 {[%clk 0:02:47.2]} 19...
f5 {[%clk 0:01:36.3]} 20. h4 {[%clk 0:02:40.4]} 20... Be6 {[%clk 0:01:28.9]} 21.
Rae1 {[%clk 0:02:35.3]} 21... Qd7 {[%clk 0:00:43.5]} 22. Qf4 {[%clk 0:02:28.6]}
22... Bd6 {[%clk 0:00:31.1]} 23. Nxd6 {[%clk 0:02:28.8]} 23... cxd6 {[%clk
0:00:32]} 24. d5 {[%clk 0:02:29.3]} 24... Bg8 {[%clk 0:00:10.3]} 25. Qd4+ {[%clk
0:02:27.9]} 25... Kf8 {[%clk 0:00:10.5]} 26. Qf6+ {[%clk 0:02:28]} 26... Bf7
{[%clk 0:00:11]} 27. Qh8+ {[%clk 0:02:28.5]} 27... Bg8 {[%clk 0:00:11.3]} 28.
Qxg8# {[%clk 0:02:29.4]} 1-0

[Event "Late-Titled-Tuesday-Blitz-April-30-2024"]
[Site "Chess.com"]
[Date "2024.04.30"]
[Round "11"]
[White "Msb2"]
[Black "artin10862"]
[Result "1-0"]
[WhiteElo "3030"]
[BlackElo "2866"]
[TimeControl "180+1"]
[EndTime "16:01:55 PDT"]
[Termination "Msb2 won by resignation"]

1. d4 {[%clk 0:03:00.9]} 1... d5 {[%clk 0:02:59.3]} 2. c4 {[%clk 0:03:01.5]}
2... e6 {[%clk 0:02:59.9]} 3. Nc3 {[%clk 0:03:02.1]} 3... Bb4 {[%clk 0:02:59.6]}
4. e3 {[%clk 0:03:01.7]} 4... Nf6 {[%clk 0:02:59.4]} 5. Bd2 {[%clk 0:03:02.4]}
5... O-O {[%clk 0:02:56]} 6. Nf3 {[%clk 0:03:02.2]} 6... b6 {[%clk 0:02:54.1]}
7. cxd5 {[%clk 0:03:02.2]} 7... exd5 {[%clk 0:02:54]} 8. Rc1 {[%clk 0:03:02.9]}
8... Bb7 {[%clk 0:02:52.7]} 9. Bd3 {[%clk 0:03:03.2]} 9... Nbd7 {[%clk
0:02:41.6]} 10. O-O {[%clk 0:03:03.2]} 10... Re8 {[%clk 0:02:41.2]} 11. Nb5
{[%clk 0:03:03.3]} 11... Bxd2 {[%clk 0:02:26.4]} 12. Nxd2 {[%clk 0:03:04.2]}
12... Ba6 {[%clk 0:02:17]} 13. Nb3 {[%clk 0:03:04.5]} 13... Bxb5 {[%clk
0:02:01.5]} 14. Bxb5 {[%clk 0:03:05.4]} 14... Re6 {[%clk 0:01:56.9]} 15. Qd3
{[%clk 0:03:03.6]} 15... Rc8 {[%clk 0:01:50.8]} 16. Bc6 {[%clk 0:03:00.3]} 16...
Nf8 {[%clk 0:01:48.7]} 17. Qa6 {[%clk 0:02:55]} 17... Ng4 {[%clk 0:01:48.1]} 18.
h3 {[%clk 0:02:51.5]} 18... Qh4 {[%clk 0:01:46]} 19. Bxd5 {[%clk 0:02:42.1]}
19... Rh6 {[%clk 0:01:35.6]} 20. Qb7 {[%clk 0:02:36.5]} 20... Qd8 {[%clk
0:01:24.9]} 21. hxg4 {[%clk 0:02:23.6]} 21... Qh4 {[%clk 0:01:24.3]} 22. f4
{[%clk 0:02:23]} 22... Qg3 {[%clk 0:01:19.4]} 23. Qxc8 {[%clk 0:02:06.2]} 23...
Qxe3+ {[%clk 0:01:17.9]} 24. Rf2 {[%clk 0:02:06.2]} 24... Qg3 {[%clk 0:01:06.6]}
25. Rxc7 {[%clk 0:01:54.4]} 25... Qh2+ {[%clk 0:01:05.5]} 26. Kf1 {[%clk
0:01:54.6]} 26... Qh1+ {[%clk 0:01:06.1]} 27. Ke2 {[%clk 0:01:54.9]} 27... Re6+
{[%clk 0:01:04.5]} 28. Bxe6 {[%clk 0:01:55]} 28... fxe6 {[%clk 0:01:05.2]} 29.
Qe8 {[%clk 0:01:52.5]} 29... Qd1+ {[%clk 0:00:56.9]} 30. Kxd1 {[%clk 0:01:51.8]}
30... h6 {[%clk 0:00:57.6]} 31. Qf7+ {[%clk 0:01:51.5]} 1-0

[Event "Late-Titled-Tuesday-Blitz-April-30-2024"]
[Site "Chess.com"]
[Date "2024.04.30"]
[Round "11"]
[White "Sanan_Sjugirov"]
[Black "MKlose11"]
[Result "1-0"]
[WhiteElo "2991"]
[BlackElo "2685"]
[TimeControl "180+1"]
[EndTime "16:01:59 PDT"]
[Termination "Sanan_Sjugirov won by resignation"]

1. e4 {[%clk 0:03:00.9]} 1... e6 {[%clk 0:02:57.1]} 2. d4 {[%clk 0:02:58.1]}
2... d5 {[%clk 0:02:57.6]} 3. Nd2 {[%clk 0:02:57.7]} 3... Be7 {[%clk 0:02:56.8]}
4. Ngf3 {[%clk 0:02:57.4]} 4... Nf6 {[%clk 0:02:54.2]} 5. e5 {[%clk 0:02:57.8]}
5... Nfd7 {[%clk 0:02:54.5]} 6. c3 {[%clk 0:02:58.5]} 6... c5 {[%clk 0:02:55.4]}
7. Bd3 {[%clk 0:02:58.9]} 7... Nc6 {[%clk 0:02:56]} 8. O-O {[%clk 0:02:59.5]}
8... a5 {[%clk 0:02:53.9]} 9. a4 {[%clk 0:02:58.7]} 9... cxd4 {[%clk 0:02:52.2]}
10. cxd4 {[%clk 0:02:58.8]} 10... Nb4 {[%clk 0:02:52.1]} 11. Bb1 {[%clk
0:02:58.7]} 11... b6 {[%clk 0:02:52.7]} 12. Re1 {[%clk 0:02:58.8]} 12... Ba6
{[%clk 0:02:53.6]} 13. Nf1 {[%clk 0:02:55.9]} 13... Rc8 {[%clk 0:02:53.4]} 14.
Ra3 {[%clk 0:02:52.9]} 14... Qc7 {[%clk 0:02:48.6]} 15. Rc3 {[%clk 0:02:52.8]}
15... Qb7 {[%clk 0:02:48.6]} 16. Ng3 {[%clk 0:02:52.8]} 16... h5 {[%clk
0:02:41.6]} 17. h4 {[%clk 0:02:48.4]} 17... b5 {[%clk 0:02:35.2]} 18. Rxc8+
{[%clk 0:02:43.2]} 18... Qxc8 {[%clk 0:02:34.5]} 19. axb5 {[%clk 0:02:44.1]}
19... Bxb5 {[%clk 0:02:35.1]} 20. Bg5 {[%clk 0:02:45]} 20... Nc6 {[%clk
0:02:18.5]} 21. Bxe7 {[%clk 0:02:42.4]} 21... Nxe7 {[%clk 0:02:19.4]} 22. Ng5
{[%clk 0:02:42.8]} 22... g6 {[%clk 0:02:18.6]} 23. Qf3 {[%clk 0:02:41.2]} 23...
Nf5 {[%clk 0:02:18.8]} 24. Bxf5 {[%clk 0:02:40.3]} 24... gxf5 {[%clk 0:02:01.5]}
25. Nxh5 {[%clk 0:02:40.2]} 25... Qc4 {[%clk 0:01:52.5]} 26. Ng7+ {[%clk
0:02:32]} 26... Kf8 {[%clk 0:01:52.3]} 27. N7xe6+ {[%clk 0:02:24.9]} 27... fxe6
{[%clk 0:01:52.2]} 28. Nxe6+ {[%clk 0:02:25.8]} 28... Ke7 {[%clk 0:01:52.5]} 29.
Nf4 {[%clk 0:02:25.9]} 29... Kd8 {[%clk 0:01:38]} 30. e6 {[%clk 0:02:25.5]}
30... Nb6 {[%clk 0:01:37.4]} 31. e7+ {[%clk 0:02:25.3]} 31... Kc7 {[%clk
0:01:37.5]} 32. Ne6+ {[%clk 0:02:18.3]} 32... Kb7 {[%clk 0:01:36]} 33. Qxf5
{[%clk 0:02:15]} 33... Nd7 {[%clk 0:01:16]} 34. Nd8+ {[%clk 0:01:56.8]} 34...
Ka7 {[%clk 0:01:08.4]} 35. e8=Q {[%clk 0:01:52.1]} 35... Rxe8 {[%clk 0:01:00.4]}
36. Rxe8 {[%clk 0:01:53]} 36... Qf1+ {[%clk 0:01:00.6]} 37. Kh2 {[%clk
0:01:52.9]} 37... Nf6 {[%clk 0:01:01.5]} 38. Re7+ {[%clk 0:01:52.2]} 38... Kb8
{[%clk 0:00:59.3]} 39. Rb7+ {[%clk 0:01:50.3]} 1-0